Cogmind - Beta 11 X9 @@@ ROGUE MODE // 2021.12.25 @ 02:21:34 // Winter2021/Sauler Player: leiavoia Result: Destroyed by S-43 Plague with Heavy Machine Gun Performance ------------- Evolutions (6) 3000 Regions Visited (20) 4000 Robots Destroyed (147) 735 Value Destroyed (6958) 6958 Prototype IDs (59) 1180 Alien Tech Used (3) 600 Bonus (3438) 3438 TOTAL SCORE: 19911 Bonus ------- High Alert Combat Kills 637 Follower Combat Kills 1967 Entered DSFs 500 Network Hubs Disabled 200 Aligned with FarCom 300 Met Zhirov 300 Met R17 at Cetus 500 Friendly Fire -966 Cogmind --------- Core Integrity 0/1150 Matter 290/300 Energy 100/100 System Corruption 15% Temperature Cool (0) Movement Core (100) Ox1 Location -3/Proximity Caves Parts ------- > --- POWER (1) -------- (None) > --- PROPULSION (6) --- (None) > --- UTILITY (7) ------ (None) > --- WEAPON (5) ------- Force Lance > --- INVENTORY (5) ---- Small Battery (100) High-capacity Matter Pod (200) Transmission Jammer Makeshift Hacking Suite Advanced System Shield Peak State ------------ > --- POWER ------------ Quantum Reactor > --- PROPULSION ------- Heavy Siege Treads Centrium Heavy Treads Centrium Heavy Treads > --- UTILITY ---------- Advanced Heat Sink High-capacity Storage Unit Enhanced Optical Array Long-range Terrain Scanner Improved Terrain Scan Processor Improved Weapon Cycler Centrium Medium Armor Plating > --- WEAPON ----------- Quantum Rifle KE Penetrator Improved KE Penetrator Improved KE Penetrator Improved KE Penetrator > --- INVENTORY -------- Compact Particle Reactor Gravmag Array Gravmag Array Antigrav System Antigrav System High-capacity Matter Pod Advanced Targeting Computer Advanced Targeting Computer Matter Filter Transmission Jammer Layered Light Armor Plating Long-range Tractor Beam Advanced Variable Charge Gun Quantum Rifle Matter Neutralizer Micro-nuke Launcher Force Lance Force Lance [Rating: 143] Favorites ----------- Power Quantum Reactor Engine Heavy Deuterium Engine Power Core Light Nuclear Core Reactor Quantum Reactor Propulsion Centrium Heavy Treads Treads Centrium Heavy Treads Leg Aluminum Leg Hover Unit Gravmag Array Utility High-capacity Storage Unit Device Advanced Heat Sink Storage High-capacity Storage Unit Processor Improved Terrain Scan Processor Hackware Improved Hacking Suite Protection Improved Medium Armor Plating Weapon Improved KE Penetrator Energy Gun Advanced Variable Charge Gun Energy Cannon Matter Neutralizer Ballistic Gun Improved KE Penetrator Ballistic Cannon Bore Cannon Launcher Grenade Launcher Impact Weapon Flail Slashing Weapon Longsword +1 Piercing Weapon Force Lance Build | -11 -10 -9 -9 -9 -8 -8 -8 -7 -7 -6 -6 -6 -6 -6 -5 -4 -4 -4 -4 -3 ------- Run | Scr Mat Mat Min Exi Min Mat Sto Fac DSF Fac Ext Cet Arc Hub Fac Fac Upp Upp Zhi Pro Slots Evolved 12 | . . 2 . . . 2 . 2 . 2 . . . . 2 2 . . . . Power . | . . . . . . . . . . . . . . . . . . . . . Propulsion 4 | . . . . . . 1 . . . 1 . . . . 2 . . . . . Utility 5 | . . 1 . . . 1 . 2 . . . . . . . 1 . . . . Weapon 3 | . . 1 . . . . . . . 1 . . . . . 1 . . . . Parts Attached 255 | 2 2 3 1 . 8 29 26 5 13 5 26 14 8 2 2 51 12 5 20 21 Power 17 | . . . . . 1 3 1 1 . . 1 4 . . . 1 . . 3 2 Engine 6 | . . . . . . 2 1 1 . . 1 1 . . . . . . . . Core 2 | . . . . . 1 1 . . . . . . . . . . . . . . Reactor 9 | . . . . . . . . . . . . 3 . . . 1 . . 3 2 Propulsion 34 | . . . . . 2 6 4 . 1 1 6 2 . . 2 5 . . 4 1 Treads 28 | . . . . . 1 6 4 . 1 1 6 2 . . 2 5 . . . . Leg 1 | . . . . . 1 . . . . . . . . . . . . . . . Wheel . | . . . . . . . . . . . . . . . . . . . . . Hover 5 | . . . . . . . . . . . . . . . . . . . 4 1 Flight . | . . . . . . . . . . . . . . . . . . . . . Utility 103 | 1 2 1 . . 2 7 7 3 1 2 10 5 5 2 . 27 6 3 8 11 Device 45 | 1 . . . . 2 3 1 2 . 2 5 2 2 . . 12 2 2 3 6 Storage 10 | . 1 . . . . 1 . . . . 1 . . . . 1 1 . 2 3 Processor 10 | . 1 . . . . 1 1 1 . . . . 1 1 . 2 . . 1 1 Hackware 7 | . . . . . . . 1 . . . . . . . . 5 . . 1 . Protection 31 | . . 1 . . . 2 4 . 1 . 4 3 2 1 . 7 3 1 1 1 Artifact . | . . . . . . . . . . . . . . . . . . . . . Weapon 101 | 1 . 2 1 . 3 13 14 1 11 2 9 3 3 . . 18 6 2 5 7 Energy Gun 34 | 1 . . 1 . 1 7 6 1 4 . . 1 1 . . 4 4 1 1 1 Energy Cannon 4 | . . . . . . . . . 3 . . . . . . . . . . 1 Ballistic Gun 29 | . . . . . 1 4 3 . 1 1 5 1 1 . . 7 . . 4 1 Ballistic Cannon 3 | . . . . . . . . . . . 1 1 . . . . . 1 . . Launcher 10 | . . 1 . . . 1 2 . 2 . 1 . . . . 1 1 . . 1 Special Weapon . | . . . . . . . . . . . . . . . . . . . . . Impact Weapon 1 | . . 1 . . . . . . . . . . . . . . . . . . Slashing Weapon 12 | . . . . . 1 1 3 . 1 1 2 . 1 . . 2 . . . . Piercing Weapon 8 | . . . . . . . . . . . . . . . . 4 1 . . 3 Special Melee Weapon . | . . . . . . . . . . . . . . . . . . . . . Unidentified Prototypes 19 | . . . . . . . 6 . . . . 4 1 . . 1 . . 5 2 Corrupted Parts 1 | . . . . . . . . . . . . 1 . . . . . . . . System Corruption 10 | . . . . . . . . . . . . 10 . . . . . . . . Parts Lost 36 | . . . . . 1 5 . . 1 . 7 1 . . . 4 1 . . 16 Power 4 | . . . . . . 1 . . . . 1 . . . . . . . . 2 Propulsion 7 | . . . . . . . . . 1 . 1 . . . . 1 . . . 4 Utility 11 | . . . . . 1 1 . . . . 3 1 . . . 2 . . . 3 Weapon 14 | . . . . . . 3 . . . . 2 . . . . 1 1 . . 7 Highest Loss Streak 7 | . . . . . 1 4 . . 1 . 7 1 . . . 1 1 . . 5 Average Slot Usage (%) 90 | . 100 93 100 100 99 97 99 100 99 100 97 88 86 86 88 86 83 84 65 67 Engine 3 | . 14 11 11 11 3 1 8 7 7 6 5 2 . . . . . . . . Core 1 | . . . . . 7 7 . . . . . . . . . . . . . . Reactor 2 | . . . . . . . . . . . . 3 6 6 5 5 5 5 4 4 Treads 14 | . . . . . . 23 27 23 22 26 25 15 13 13 23 18 15 15 7 . Leg 4 | . 28 22 22 22 21 2 . . . . . . . . . . . . . . Device 9 | . . . . . 7 10 10 15 15 20 14 17 14 20 17 8 14 13 11 8 Storage 7 | . 14 11 11 11 11 9 9 7 7 6 6 6 6 6 5 5 5 5 6 4 Processor 9 | . 13 11 11 11 11 10 9 15 15 13 5 . 2 6 5 6 10 10 10 15 Hackware 3 | . . . . . . . 3 . . . . . . . . 12 . . 1 2 Protection 5 | . . 5 11 11 3 4 4 7 7 . 10 15 16 6 5 2 5 6 4 . Energy Gun 8 | . 14 11 11 11 11 15 10 . 11 13 7 3 8 13 11 8 6 5 . 4 Ballistic Gun 11 | . 14 11 11 11 11 8 10 15 . 6 12 18 11 6 5 13 16 14 . 7 Launcher 1 | . . 3 11 11 2 . . . 4 . . . . . . . . . . . Slashing Weapon 2 | . . . . . 7 2 4 6 . 6 1 . 1 6 5 2 . . . . Naked Turns . | . . . . . . . . . . . . . . . . . . . . . Heaviest Build 108 | 15 29 35 36 36 38 69 69 66 77 68 94 106 108 88 88 99 102 105 105 79 Greatest Support 230 | 20 20 20 20 20 20 60 66 66 67 87 103 160 160 160 213 230 230 230 230 62 Greatest Overweight (x) 24 | . 1 1 1 1 1 1 1 . 1 . 1 . . . . . . . 1 24 Average Overweight (x) . | . . 1 1 1 1 . . . . . . . . . . . . . . 2 Largest Inventory Capacity 20 | 8 15 15 15 15 15 20 20 20 20 20 20 20 20 20 20 20 20 20 20 15 Average Capacity 18 | 8 8 15 15 15 15 19 20 20 20 20 20 20 20 20 20 20 20 20 17 14 Most Carried 20 | 7 9 15 15 15 15 20 20 20 20 19 20 20 20 20 19 20 20 20 20 15 Average Carried 17 | 6 8 11 14 14 14 18 19 18 19 18 19 19 20 20 18 18 19 19 17 9 Final Capacity 20 | 8 15 15 15 15 15 20 20 20 20 20 20 20 20 20 20 20 20 20 15 5 Final Carried 20 | 7 9 15 15 15 15 20 20 20 20 19 20 20 20 20 18 19 20 20 15 5 Class Distribution -------------------- 27% | Scavenger-Skirmisher 21% | Scavenger-Assassin 19% | Mutant 13% | Scavenger-Mutant 8% | Scavenger-Tank 3% | Skirmisher Dominant Class ---------------- Mutant | -10/Materials Mutant | -9/Materials Mutant | -9/Mines Mutant | -9/Exiles Scavenger-Mutant | -8/Mines Scavenger-Skirmisher | -8/Materials Mutant | -8/Storage Assassin | -7/Factory Scavenger-Skirmisher | -7/DSF Scavenger-Assassin | -6/Factory Scavenger-Skirmisher | -6/Extension Scavenger-Tank | -6/Cetus Scavenger-Tank | -6/Archives Scavenger-Assassin | -6/Hub_04(d) Scavenger-Assassin | -5/Factory Scavenger-Skirmisher | -4/Factory Scavenger-Skirmisher | -4/Upper Caves Scavenger-Assassin | -4/Upper Caves Scavenger-Mutant | -4/Zhirov Mutant | -3/Proximity Caves Resources | -11 -10 -9 -9 -9 -8 -8 -8 -7 -7 -6 -6 -6 -6 -6 -5 -4 -4 -4 -4 -3 ----------- Run | Scr Mat Mat Min Exi Min Mat Sto Fac DSF Fac Ext Cet Arc Hub Fac Fac Upp Upp Zhi Pro Matter Collected 5863 | 232 . 73 80 90 214 469 378 . 144 . 772 546 151 . . 1419 479 132 204 480 Remotely 704 | 10 . . . . 69 . . . . . . 237 . . . 362 . . . 26 Salvage Created 6894 | 83 19 100 30 . 223 920 586 . 378 . 762 332 34 . . 1674 716 220 298 519 Parts 313 | 4 2 10 7 . 9 41 41 . 18 . 40 6 4 . . 84 14 8 4 21 Haulers Intercepted 4 | . . . . . . 1 3 . . . . . . . . . . . . . Recyclers Shooed 2 | 1 . . . . . . . . . . 1 . . . . . . . . . Parts Field Recycled . | . . . . . . . . . . . . . . . . . . . . . Retrieved Matter . | . . . . . . . . . . . . . . . . . . . . . Parts Self-Destructed 41 | . . . . . . . . . . . . . . . . . 14 8 1 18 Prevented . | . . . . . . . . . . . . . . . . . . . . . Kills | -11 -10 -9 -9 -9 -8 -8 -8 -7 -7 -6 -6 -6 -6 -6 -5 -4 -4 -4 -4 -3 ------- Run | Scr Mat Mat Min Exi Min Mat Sto Fac DSF Fac Ext Cet Arc Hub Fac Fac Upp Upp Zhi Pro Combat Hostiles Destroyed 118 | . 1 5 3 . 4 15 9 . 10 . 11 4 . . . 32 11 3 . 10 Melee 8 | . . . . . 3 . . . . . . . . . . 4 . . . 1 Guns 74 | . 1 1 . . 1 15 8 . . . 4 4 . . . 21 9 3 . 7 Cannons 4 | . . . . . . . . . 2 . 1 . . . . . . . . 1 AOE 30 | . . 4 3 . . . 1 . 7 . 5 . . . . 7 2 . . 1 Classes Destroyed 16 | 2 1 3 1 . 2 2 1 . 2 . 1 . . . . 1 . . . . Worker 3 | . . . 1 . . . . . . . . . . . . 2 . . . . Builder 8 | . . 1 . . 1 . . . . . 3 . . . . 3 . . . . Tunneler 1 | 1 . . . . . . . . . . . . . . . . . . . . Hauler 4 | . . . . . . 1 3 . . . . . . . . . . . . . Recycler 8 | 1 . . . . 1 3 . . . . 2 . . . . 1 . . . . Operator 2 | . . 1 . . . . . . . . . . 1 . . . . . . . Watcher 1 | . . . . . . . 1 . . . . . . . . . . . . . Swarmer 21 | . 1 4 3 . . . . . . . 4 . . . . 5 . . . 4 Grunt 47 | . . . . . 3 9 2 . 7 . 4 . . . . 11 5 3 . 3 Brawler 5 | . . . . . . 1 . . . . . 1 . . . . 2 . . 1 Duelist 3 | . . . . . . . . . . . . . . . . 1 2 . . . Sentry 16 | . . 1 . . . 3 7 . . . 1 . . . . 2 2 . . . Specialist 2 | . . . . . . . . . 2 . . . . . . . . . . . Hunter 3 | . . . . . 1 2 . . . . . . . . . . . . . . Programmer 16 | . . . . . . . . . . . 1 . . . . 13 . . . 2 Heavy 1 | . . . . . . . . . 1 . . . . . . . . . . . Cetus Guard 3 | . . . . . . . . . . . . 3 . . . . . . . . Thug 2 | . . . . . . . . . . . 1 1 . . . . . . . . Best Kill Streak 7 | 2 1 5 4 . 4 6 5 . 6 . 4 2 1 . . 7 5 3 . 4 Combat Bots Only 6 | . 1 4 3 . 3 6 2 . 6 . 4 2 . . . 6 5 3 . 4 Max Kills in Single Turn 4 | 1 1 3 3 . 1 1 2 . 2 . 4 1 1 . . 4 2 1 . 2 Gunslinging 1 | . . . . . . . . . . . . . . . . . 1 . . . Exploded 4 | . . 2 2 . . . 1 . 2 . 4 . . . . 4 2 . . 1 Melee 1 | . . . . . 1 . . . . . . . . . . 1 . . . 1 Uniques/NPCs Destroyed 1 | . . . . . . . . . . . . 1 . . . . . . . . A7 (-6/Cetus) Combat | -11 -10 -9 -9 -9 -8 -8 -8 -7 -7 -6 -6 -6 -6 -6 -5 -4 -4 -4 -4 -3 -------- Run | Scr Mat Mat Min Exi Min Mat Sto Fac DSF Fac Ext Cet Arc Hub Fac Fac Upp Upp Zhi Pro Damage Taken 11193 | . 16 91 31 . 432 949 253 . 630 . 1356 930 212 131 . 1933 1206 330 . 2693 Core 1739 | . . . 6 . 90 160 36 . 59 . 234 60 . . . 146 46 . . 902 Absorbed by Shields 237 | . . . . . . . . . . . 201 36 . . . . . . . . Reduced by Siege Mode 269 | . . . . . . . . . . . . 69 . . . 102 64 34 . . Core Remaining (%) 85 | 100 100 . . . 76 . 64 . 91 . . . . 65 100 . . . . . Volleys Fired 297 | 4 3 11 2 . 14 36 17 . 11 . 39 24 7 . . 75 23 7 . 24 Largest 5 | 2 2 2 1 . 3 3 3 . 3 . 4 4 4 . . 5 5 4 . 5 Hottest 437 | 70 70 70 30 . 149 188 169 . 207 . 202 188 195 . . 396 437 197 . 363 Shots Fired 868 | 8 6 12 2 . 31 104 52 . 31 . 103 86 20 1 . 231 81 25 . 75 Gun 790 | 8 6 9 . . 29 102 48 . 10 . 83 81 18 1 . 224 78 25 . 68 Cannon 48 | . . . . . . . . . 16 . 19 5 2 . . . . . . 6 Launcher 30 | . . 3 2 . 2 2 4 . 5 . 1 . . . . 7 3 . . 1 Special . | . . . . . . . . . . . . . . . . . . . . . Kinetic 540 | 4 3 8 . . 14 43 26 . . . 69 77 12 . . 152 63 21 . 48 Thermal 277 | 4 3 1 . . 15 59 22 . 10 . 33 9 8 1 . 67 15 4 . 26 Explosive 30 | . . 3 2 . 2 2 4 . 5 . 1 . . . . 7 3 . . 1 Electromagnetic 21 | . . . . . . . . . 16 . . . . . . 5 . . . . Robot Hit Streak 23 | 6 4 8 1 . 11 21 10 . 23 . 17 9 11 5 . 22 19 18 . 21 Robot Miss Streak 8 | . 1 1 . . 4 4 2 . 2 . 3 5 3 . . 6 3 1 . 8 Penetration Max 1 | . . . . . . 1 1 . . . 1 1 1 . . 1 1 1 . 1 Secondary Targets 12 | . . . . . . 1 . . . . 1 1 . . . 2 5 1 . 1 Max Gunslinging Chain 1 | . . . . . . 1 . . . . 1 1 . . . 1 1 1 . 1 Shots Hit Robots 644 | 6 4 9 1 . 33 81 35 . 32 . 65 59 13 2 . 164 65 22 5 48 Core Hits 382 | 3 2 10 4 . 19 51 20 . 17 . 36 37 7 . . 106 34 9 5 22 Critical Kills 10 | . . . . . . 2 . . . . . . . . . 5 . . . 3 Critical Parts Destroyed 33 | . . . . . . 1 2 . . . 1 2 . . . 11 9 5 . 2 Critical Strikes 55 | . . . . . . 5 2 . . . 1 4 3 . . 20 9 5 . 6 Burn 7 | . . . . . . 2 . . . . . 2 3 . . . . . . . Destroy 44 | . . . . . . 3 2 . . . 1 2 . . . 17 9 5 . 5 Puncture 4 | . . . . . . . . . . . . . . . . 3 . . . 1 Melee Attacks 108 | . . 1 . . 9 3 23 . 3 1 15 . . 6 . 26 1 4 5 11 Impact 1 | . . 1 . . . . . . . . . . . . . . . . . . Slashing 68 | . . . . . 9 3 23 . 3 1 15 . . 6 . 8 . . . . Piercing 39 | . . . . . . . . . . . . . . . . 18 1 4 5 11 Sneak Attacks 8 | . . 1 . . 3 . 2 . . . 1 . . . . 1 . . . . Combat Hostiles . | . . . . . . . . . . . . . . . . . . . . . Follow-up Attacks . | . . . . . . . . . . . . . . . . . . . . . Damage Inflicted 21346 | 75 49 434 144 . 1076 1581 1174 . 1190 . 2031 1667 367 71 . 6201 2192 602 770 1722 Guns 14109 | 75 49 101 . . 420 1463 598 . 222 . 1368 1583 367 20 . 4317 1677 602 . 1247 Cannons 782 | . . . . . . . . . 392 . 144 84 . . . . . . . 162 Explosions 3801 | . . 233 144 . 30 118 248 . 540 . 366 . . . . 1417 515 . . 190 Melee 2647 | . . 100 . . 626 . 328 . 36 . 146 . . 51 . 467 . . 770 123 Ramming 7 | . . . . . . . . . . . 7 . . . . . . . . . Kinetic 9196 | 50 23 101 . . 181 608 298 . . . 839 1476 223 . . 2781 1330 515 . 771 Thermal 5319 | 25 26 . . . 239 855 300 . 222 . 774 191 144 20 . 1451 347 87 . 638 Explosive 3657 | . . 233 144 . 30 118 248 . 540 . 265 . . . . 1374 515 . . 190 Electromagnetic 520 | . . . . . . . . . 392 . . . . . . 128 . . . . Impact 100 | . . 100 . . . . . . . . . . . . . . . . . . Slashing 1357 | . . . . . 626 . 328 . 36 . 146 . . 51 . 170 . . . . Piercing 1190 | . . . . . . . . . . . . . . . . 297 . . 770 123 Highest Corruption 32 | . . . . . . . 5 2 2 . 20 30 30 32 . 8 8 8 8 15 Average Corruption 10 | . . . . . . . 5 2 2 . 18 27 30 31 . 6 8 8 8 10 Corruption Purged . | . . . . . . . . . . . . . . . . . . . . . Effects 258 | . . . . . . . 24 . 3 . 34 24 11 14 . 63 32 16 11 26 Message Errors 62 | . . . . . . . 6 . 1 . 7 8 4 2 . 16 7 2 1 8 Matter Fused 44 | . . . . . . . 4 . . . 8 4 1 1 . 14 4 1 3 4 Heat Flow Errors 33 | . . . . . . . 2 . 1 . 4 . 3 4 . 8 1 3 2 5 Energy Discharges 36 | . . . . . . . 1 . 1 . 5 3 . 2 . 12 4 5 2 1 Parts Rejected 2 | . . . . . . . . . . . . 1 . . . . . . . 1 Data Loss (minor) 32 | . . . . . . . 8 . . . 2 1 1 1 . 6 8 3 1 1 Data Loss (major) 14 | . . . . . . . 1 . . . 2 1 1 . . 1 3 . 2 3 Misfires 11 | . . . . . . . 2 . . . 1 . 1 1 . 2 2 1 . 1 Alerts 5 | . . . . . . . . . . . 1 2 . 1 . . . . . 1 Misdirections 3 | . . . . . . . . . . . 1 . . 2 . . . . . . Weapon Failures 16 | . . . . . . . . . . . 3 4 . . . 4 3 1 . 1 Overload Shots 21 | . . . . . . . . . . . . . . . . 20 1 . . . Effects 1 | . . . . . . . . . . . . . . . . 1 . . . . Heat Surge 1 | . . . . . . . . . . . . . . . . 1 . . . . Overflow Damage 358 | . . 88 . . . . 29 . . . 34 . . 16 . 157 . . . 34 Projectiles . | . . . . . . . . . . . . . . . . . . . . . Explosions 120 | . . 28 . . . . . . . . . . . . . 58 . . . 34 Melee 238 | . . 60 . . . . 29 . . . 34 . . 16 . 99 . . . . Knockbacks 1 | . . . . . . . . . . . 1 . . . . . . . . . Impact . | . . . . . . . . . . . . . . . . . . . . . Kinetic 1 | . . . . . . . . . . . 1 . . . . . . . . . Secondary . | . . . . . . . . . . . . . . . . . . . . . Self-Inflicted Damage 405 | . . . . . 3 27 24 . 191 . . . . . . 104 37 . . 19 Shots 13 | . . . . . 1 2 1 . 5 . . . . . . 2 1 . . 1 Rammed 1 | . . . . . . . . . . . 1 . . . . . . . . . Targets Rammed 1 | . . . . . . . . . . . 1 . . . . . . . . . Kicked . | . . . . . . . . . . . . . . . . . . . . . Crushed . | . . . . . . . . . . . . . . . . . . . . . Highest Temperature 778 | 36 18 14 . . 449 377 307 . 231 . 220 346 229 236 . 588 489 345 205 778 Average Temperature 137 | 19 9 7 . . 190 108 95 . 32 . 66 161 90 105 . 131 214 163 94 255 Received Heat Transfer 2382 | . . 45 . . 171 477 90 . 117 . 186 256 27 . . 274 264 78 . 397 Effects 45 | . . . . . 2 2 . . . . . 7 . . . 5 4 . . 25 Shutdowns 6 | . . . . . 1 1 . . . . . . . . . 1 1 . . 2 Energy Bleed 8 | . . . . . 1 1 . . . . . 1 . . . 1 . . . 4 Interference 8 | . . . . . . . . . . . . 5 . . . . . . . 3 Matter Decay 9 | . . . . . . . . . . . . 1 . . . 1 1 . . 6 Short Circuit 2 | . . . . . . . . . . . . . . . . . 1 . . 1 Damage (minor) 6 | . . . . . . . . . . . . . . . . 2 1 . . 3 Damage (major) 5 | . . . . . . . . . . . . . . . . . . . . 5 Damage (core) 1 | . . . . . . . . . . . . . . . . . . . . 1 Siege Activations 8 | . . . . . . . . . . . . 1 . . . 3 3 1 . . Total Turns 149 | . . . . . . . . . . . . 35 . . . 60 38 16 . . Longest Duration 35 | . . . . . . . . . . . . 35 . . . 22 15 16 . . Robots Corrupted 1 | . . . . . . . . . 1 . . . . . . . . . . . Combat Hostiles 1 | . . . . . . . . . 1 . . . . . . . . . . . Parts Fried 6 | . . . . . . . . . 6 . . . . . . . . . . . Impact Corruptions 4 | . . 4 . . . . . . . . . . . . . . . . . . Robots Melted 1 | . . . . . . . . . . . 1 . . . . . . . . . Combat Hostiles 1 | . . . . . . . . . . . 1 . . . . . . . . . Parts Melted 9 | . . . . . . 1 . . . . 5 . 1 . . 1 1 . . . Heat Transferred 9088 | 74 74 . . . 336 2074 608 . 500 . 1468 481 481 37 . 1647 457 111 . 740 Parts Sabotaged . | . . . . . . . . . . . . . . . . . . . . . Parts Stolen . | . . . . . . . . . . . . . . . . . . . . . Parts Stripped . | . . . . . . . . . . . . . . . . . . . . . Power Chain Reactions 1 | . . . . . . . . . . . . . . . . 1 . . . . Missiles Intercepted . | . . . . . . . . . . . . . . . . . . . . . Alert | -11 -10 -9 -9 -9 -8 -8 -8 -7 -7 -6 -6 -6 -6 -6 -5 -4 -4 -4 -4 -3 ------- Run | Scr Mat Mat Min Exi Min Mat Sto Fac DSF Fac Ext Cet Arc Hub Fac Fac Upp Upp Zhi Pro Peak Influence 988 | 10 76 183 242 . 122 273 577 139 387 204 694 754 452 402 163 988 . . . . Initial 325 | . 6 31 70 . . . 86 139 97 203 99 325 221 158 163 79 . . . . Average 279 | 8 53 99 116 . 28 155 365 139 279 203 354 532 417 213 163 371 . . . . Maximum Alert Level 3 | . . . 1 . . 1 2 . 1 1 2 3 2 2 . 3 . . . . Low Security (%) 49 | 100 100 100 77 . 100 65 18 100 26 . 21 . . 62 100 48 . . . . Level 1 22 | . . . 22 . . 34 36 . 73 100 43 48 15 36 . 5 . . . . Level 2 17 | . . . . . . . 44 . . . 34 14 84 1 . 19 . . . . Level 3 9 | . . . . . . . . . . . . 36 . . . 26 . . . . Level 4 . | . . . . . . . . . . . . . . . . . . . . . Level 5 . | . . . . . . . . . . . . . . . . . . . . . High Security . | . . . . . . . . . . . . . . . . . . . . . Max Security . | . . . . . . . . . . . . . . . . . . . . . Sterilizations 1 | . . . . . . . . . 1 . . . . . . . . . . . Squads Dispatched 34 | . . 1 . . . 6 3 . 2 . 4 . . 3 . 14 . . . 1 Investigation 10 | . . . . . . 5 1 . . . 2 . . 1 . 1 . . . . Extermination 6 | . . . . . . . . . . . . . . . . 6 . . . . Reinforcement 11 | . . 1 . . . 1 . . 2 . 1 . . 2 . 4 . . . . Assault 5 | . . . . . . . 1 . . . 1 . . . . 2 . . . 1 Garrison 2 | . . . . . . . 1 . . . . . . . . 1 . . . . Intercept . | . . . . . . . . . . . . . . . . . . . . . Construction Impeded 5 | . . . . . . . . . . . 1 . . 1 . 3 . . . . Haulers Reinforced 1 | . . . . . . . . . . . . . . . . 1 . . . . Active Scanning Responses . | . . . . . . . . . . . . . . . . . . . . . Cargo Convoy Interrupts . | . . . . . . . . . . . . . . . . . . . . . Stealth | -11 -10 -9 -9 -9 -8 -8 -8 -7 -7 -6 -6 -6 -6 -6 -5 -4 -4 -4 -4 -3 --------- Run | Scr Mat Mat Min Exi Min Mat Sto Fac DSF Fac Ext Cet Arc Hub Fac Fac Upp Upp Zhi Pro Distress Signals 9 | . . . . . . 4 . . . . 1 1 . 2 . 1 . . . . Communications Jammed . | . . . . . . . . . . . . . . . . . . . . . Distress Signals . | . . . . . . . . . . . . . . . . . . . . . Times Spotted 212 | . 4 6 3 . 4 31 15 . 11 . 27 14 12 4 . 43 11 3 . 24 Peak Tracking Total 8 | . 3 4 3 . 3 7 2 . 4 . 5 8 2 4 . 7 5 3 . 8 Tactical Retreats 10 | . 1 . . . . 1 . . 2 . 1 . . . . 3 . . . 2 Traps | -11 -10 -9 -9 -9 -8 -8 -8 -7 -7 -6 -6 -6 -6 -6 -5 -4 -4 -4 -4 -3 ------- Run | Scr Mat Mat Min Exi Min Mat Sto Fac DSF Fac Ext Cet Arc Hub Fac Fac Upp Upp Zhi Pro Traps Triggered 8 | . . . . . . 1 . 1 3 . 1 . . 2 . . . . . . Indirectly . | . . . . . . . . . . . . . . . . . . . . . Trap Hack Attempts . | . . . . . . . . . . . . . . . . . . . . . Triggered . | . . . . . . . . . . . . . . . . . . . . . Disarmed . | . . . . . . . . . . . . . . . . . . . . . Reprogrammed . | . . . . . . . . . . . . . . . . . . . . . Reused . | . . . . . . . . . . . . . . . . . . . . . Traps Extracted . | . . . . . . . . . . . . . . . . . . . . . Installed . | . . . . . . . . . . . . . . . . . . . . . Triggered . | . . . . . . . . . . . . . . . . . . . . . Exploded 1 | . . . . 1 . . . . . . . . . . . . . . . . Machines | -11 -10 -9 -9 -9 -8 -8 -8 -7 -7 -6 -6 -6 -6 -6 -5 -4 -4 -4 -4 -3 ---------- Run | Scr Mat Mat Min Exi Min Mat Sto Fac DSF Fac Ext Cet Arc Hub Fac Fac Upp Upp Zhi Pro Machines Disabled 27 | . . . . . . 2 5 . 1 . 5 1 1 . . 10 2 . . . Max in Single Turn 4 | . . . . . . 1 1 . 1 . 4 . 1 . . 2 1 . . . Garrison Access 1 | . . . . . . . 1 . . . . . . . . . . . . . Network Hub 1 | . . . . . . . . . . . . . . 1 . . . . . . Energy Cycler 1 | . . . . . . . . . . . 1 . . . . . . . . . Machines Sabotaged 1 | . . . . . . . . . . . . . . 1 . . . . . . Garrisons Compromised . | . . . . . . . . . . . . . . . . . . . . . Overloaded Fab Kills . | . . . . . . . . . . . . . . . . . . . . . Hacking | -11 -10 -9 -9 -9 -8 -8 -8 -7 -7 -6 -6 -6 -6 -6 -5 -4 -4 -4 -4 -3 --------- Run | Scr Mat Mat Min Exi Min Mat Sto Fac DSF Fac Ext Cet Arc Hub Fac Fac Upp Upp Zhi Pro Machines Accessed 50 | . 2 1 1 2 . 4 2 3 . 1 12 . 1 2 . 12 2 1 4 . Terminals 29 | . 2 1 1 . . 3 1 3 . 1 11 . . 1 . 5 . . . . Fabricators 2 | . . . . . . . . . . . . . . . . 2 . . . . Repair Stations 2 | . . . . . . . . . . . . . . . . 2 . . . . Recycling Units 4 | . . . . . . . . . . . 1 . . . . 3 . . . . Scanalyzers 1 | . . . . . . 1 . . . . . . . . . . . . . . Garrison Access 2 | . . . . . . . 1 . . . . . . 1 . . . . . . Total Hacks 139 | . 7 1 3 6 . 15 7 6 . 1 19 . 1 2 . 51 2 1 17 . Successful 91 | . 3 1 3 6 . 9 1 3 . 1 11 . 1 1 . 31 2 1 17 . Failed 48 | . 4 . . . . 6 6 3 . . 8 . . 1 . 20 . . . . Catastrophic 8 | . . . . . . . 1 . . . 4 . . . . 3 . . . . Database Lockouts . | . . . . . . . . . . . . . . . . . . . . . Manual 35 | . . . 3 1 . 4 . 3 . . 5 1 . 1 . 17 . . . . Terminals 76 | . 7 1 3 . . 14 3 6 . 1 18 . . 1 . 22 . . . . Fabricators 11 | . . . . . . . . . . . . . . . . 11 . . . . Repair Stations 13 | . . . . . . . . . . . . . . . . 13 . . . . Recycling Units 6 | . . . . . . . . . . . 1 . . . . 5 . . . . Scanalyzers 1 | . . . . . . 1 . . . . . . . . . . . . . . Garrison Access 5 | . . . . . . . 4 . . . . . . 1 . . . . . . Terminal Hacks 60 | . 3 1 2 6 . 8 1 2 . 1 8 . 1 . . 7 2 1 17 . Record 13 | . . . . 5 . 1 . . . . . . 1 . . . 1 . 5 . Part Schematic 4 | . . . . . . . . . . . . . . . . . . . 4 . Robot Schematic 1 | . . . . . . . . . . . . . . . . 1 . . . . Robot Analysis 5 | . 1 . . . . . . . . . . . . . . . . . 4 . Prototype ID Bank 9 | . 1 . . . . 2 1 . . . 1 . . . . . . . 4 . Open Door 8 | . . . . . . . . . . 1 5 . . . . . 1 1 . . Open DSF 2 | . . . . . . . . 1 . . . . . . . 1 . . . . Branch Access Points 3 | . . 1 . . . 1 . . . . . . . . . 1 . . . . Emergency Access Points 2 | . 1 . . . . . . . . . . . . . . 1 . . . . Alert Level 1 | . . . . . . 1 . . . . . . . . . . . . . . Unreport Threat 1 | . . . . . . 1 . . . . . . . . . . . . . . Locate Traps 2 | . . . . . . . . . . . 1 . . . . 1 . . . . Patrol Status 1 | . . . 1 . . . . . . . . . . . . . . . . . Zone Layout 7 | . . . 1 . . 2 . 1 . . 1 . . . . 2 . . . . EX-Prototype ID Bank 1 | . . . . 1 . . . . . . . . . . . . . . . . Fabricator Hacks 7 | . . . . . . . . . . . . . . . . 7 . . . . Network Status 1 | . . . . . . . . . . . . . . . . 1 . . . . Load Schematic 3 | . . . . . . . . . . . . . . . . 3 . . . . Build 3 | . . . . . . . . . . . . . . . . 3 . . . . Repair Station Hacks 10 | . . . . . . . . . . . . . . . . 10 . . . . Scan Component 5 | . . . . . . . . . . . . . . . . 5 . . . . Repair 5 | . . . . . . . . . . . . . . . . 5 . . . . Recycling Unit Hacks 4 | . . . . . . . . . . . 1 . . . . 3 . . . . Retrieve Components 4 | . . . . . . . . . . . 1 . . . . 3 . . . . Scanalyzer . | . . . . . . . . . . . . . . . . . . . . . Garrison Access Hacks . | . . . . . . . . . . . . . . . . . . . . . Unauthorized Hacks 10 | . . . 1 . . 1 . 1 . . 2 . . 1 . 4 . . . . Terminals 9 | . . . 1 . . . . 1 . . 2 . . 1 . 4 . . . . Track 1 | . . . . . . . . . . . . . . . . 1 . . . . Assimilate 1 | . . . . . . . . . . . 1 . . . . . . . . . Botnet 5 | . . . 1 . . . . 1 . . 1 . . . . 2 . . . . Operators 1 | . . . . . . . . . . . . . . . . 1 . . . . Sabotage 1 | . . . . . . . . . . . . . . 1 . . . . . . Fabricators . | . . . . . . . . . . . . . . . . . . . . . Repair Stations . | . . . . . . . . . . . . . . . . . . . . . Recycling Units . | . . . . . . . . . . . . . . . . . . . . . Scanalyzers 1 | . . . . . . 1 . . . . . . . . . . . . . . Extract 1 | . . . . . . 1 . . . . . . . . . . . . . . Garrison Access . | . . . . . . . . . . . . . . . . . . . . . Data Cores Recovered 2 | . . . . . . . . . . . 2 . . . . . . . . . Used . | . . . . . . . . . . . . . . . . . . . . . Hacking Detections 28 | . 2 1 . . . 3 2 3 . 1 6 1 . . . 9 . . . . Full Trace Events 7 | . . . . . . 3 1 . . . 2 . . . . 1 . . . . Feedback Events 1 | . . . . . . . . . . . . . . . . 1 . . . . Hackware Fried 1 | . . . . . . . . . . . . . . . . 1 . . . . Feedback Blocked . | . . . . . . . . . . . . . . . . . . . . . Robot Schematics Acquired 1 | . . . . . . . . . . . . . . . . 1 . . . . Robots Built 6 | . . . . . . . . . . . . . . . . 6 . . . . Authchips 2 | . . . . . . . . . . . . . . . . 2 . . . . Time 217 | . . . . . . . . . . . . . . . . 217 . . . . Total Robot Build Rating 42 | . . . . . . . . . . . . . . . . 42 . . . . Part Schematics Acquired 7 | . . . . . . 3 . . . . . . . . . . . . 4 . Parts Built . | . . . . . . . . . . . . . . . . . . . . . Authchips . | . . . . . . . . . . . . . . . . . . . . . Time . | . . . . . . . . . . . . . . . . . . . . . Total Part Build Rating . | . . . . . . . . . . . . . . . . . . . . . Parts Repaired 5 | . . . . . . . . . . . . . . . . 5 . . . . Time 531 | . . . . . . . . . . . . . . . . 531 . . . . Parts Recycled . | . . . . . . . . . . . . . . . . . . . . . Recycled Matter . | . . . . . . . . . . . . . . . . . . . . . Retrieved Matter . | . . . . . . . . . . . . . . . . . . . . . Retrieved Components 12 | . . . . . . . . . . . 10 . . . . 2 . . . . Parts Scanalyzed . | . . . . . . . . . . . . . . . . . . . . . Part Schematics Acquired . | . . . . . . . . . . . . . . . . . . . . . Parts Damaged . | . . . . . . . . . . . . . . . . . . . . . Bothacking | -11 -10 -9 -9 -9 -8 -8 -8 -7 -7 -6 -6 -6 -6 -6 -5 -4 -4 -4 -4 -3 ------------ Run | Scr Mat Mat Min Exi Min Mat Sto Fac DSF Fac Ext Cet Arc Hub Fac Fac Upp Upp Zhi Pro Used RIF Installer . | . . . . . . . . . . . . . . . . . . . . . Robots Hacked . | . . . . . . . . . . . . . . . . . . . . . Non-combat . | . . . . . . . . . . . . . . . . . . . . . Combat . | . . . . . . . . . . . . . . . . . . . . . Robot Hacks Applied . | . . . . . . . . . . . . . . . . . . . . . Relay Couplers Released 2 | . . . . . . . 2 . . . . . . . . . . . . . Machine Destruction 2 | . . . . . . . 2 . . . . . . . . . . . . . Fabnet Peak Effective % . | . . . . . . . . . . . . . . . . . . . . . Robots Rewired 8 | . . . . . . . . . . . 7 . . . . . 1 . . . Allies Hacked . | . . . . . . . . . . . . . . . . . . . . . Hacks Repelled . | . . . . . . . . . . . . . . . . . . . . . Allies | -11 -10 -9 -9 -9 -8 -8 -8 -7 -7 -6 -6 -6 -6 -6 -5 -4 -4 -4 -4 -3 -------- Run | Scr Mat Mat Min Exi Min Mat Sto Fac DSF Fac Ext Cet Arc Hub Fac Fac Upp Upp Zhi Pro Total Allies 28 | . . . 1 . . . . . . . 16 4 . . . 6 1 . . . Largest Group 8 | . . . 1 . . . . . . . 8 6 4 4 . 4 1 . . . Highest-Rated Group 374 | . . . 31 . . . . . . . 345 374 374 374 . 224 48 . . . Highest-Rated Ally 159 | . . . 31 . . . . . . . 159 152 95 95 . 56 48 . . . Total Orders . | . . . . . . . . . . . . . . . . . . . . . Ally Attacks 268 | . . . 5 . . . . . . . 112 64 15 26 . 43 3 . . . Total Damage 8018 | . . . 106 . . . . . . . 2839 2032 600 697 . 1652 92 . . . Kills 54 | . . . 3 . . . . . . . 20 13 4 5 . 9 . . . . Allies Corrupted 6 | . . . . . . . . . . . 2 . . 3 . 1 . . . . Allies Melted . | . . . . . . . . . . . . . . . . . . . . . Intel | -11 -10 -9 -9 -9 -8 -8 -8 -7 -7 -6 -6 -6 -6 -6 -5 -4 -4 -4 -4 -3 ------- Run | Scr Mat Mat Min Exi Min Mat Sto Fac DSF Fac Ext Cet Arc Hub Fac Fac Upp Upp Zhi Pro Robot Analysis Total 5 | . 1 . . . . . . . . . . . . . . . . . 4 . Derelict Logs Recovered 1 | . . . . . . . . . . . . . . . . . . 1 . . Drone Launches . | . . . . . . . . . . . . . . . . . . . . . Drone Recoveries . | . . . . . . . . . . . . . . . . . . . . . Exploration | -11 -10 -9 -9 -9 -8 -8 -8 -7 -7 -6 -6 -6 -6 -6 -5 -4 -4 -4 -4 -3 ------------- Run | Scr Mat Mat Min Exi Min Mat Sto Fac DSF Fac Ext Cet Arc Hub Fac Fac Upp Upp Zhi Pro Turns Passed 12275 | 38 195 174 485 654 960 761 832 246 376 97 1246 415 235 236 30 2860 871 601 294 669 Spaces Moved 5536 | 19 142 72 250 293 441 283 322 165 123 58 598 154 125 138 18 951 452 334 285 313 Core 27 | . . . . . . . . . . . . . . . . . . . . 27 Treads 3782 | . . . . . 17 247 322 165 123 58 598 154 125 138 18 951 452 334 80 . Legs 1236 | 19 142 72 250 293 424 36 . . . . . . . . . . . . . . Wheels . | . . . . . . . . . . . . . . . . . . . . . Hover 491 | . . . . . . . . . . . . . . . . . . . 205 286 Flight . | . . . . . . . . . . . . . . . . . . . . . Fastest Speed 48 | 120 120 190 190 190 190 160 145 145 145 152 152 156 160 160 160 160 166 166 48 50 Average Speed 164 | 120 124 190 190 190 191 186 166 145 223 152 161 159 160 160 160 161 166 166 81 160 Slowest Speed 1250 | 120 190 190 190 190 240 240 240 145 230 152 236 160 160 160 160 170 166 166 166 1250 Overloaded Moves . | . . . . . . . . . . . . . . . . . . . . . Propulsion Burnouts . | . . . . . . . . . . . . . . . . . . . . . Robots Hopped . | . . . . . . . . . . . . . . . . . . . . . Cave-ins Triggered 3 | . . . . . . . . . . . 3 . . . . . . . . . Teleports 1 | . . . . . . . . . . . . . . . . . . . . 1 Exploration Rate (%) 42 | 2 25 10 53 60 80 35 53 5 83 3 65 56 83 10 1 28 70 70 63 45 Regions Visited 20 Branch Regions 12 Pre-discovered Areas 4 | . . . . 1 . . . . . . . . . . . . . . 3 . Known Exits Taken 4 | . . 1 . . . 1 . 1 . . . . . . . 1 . . . . Unknown Exits Taken 15 | 1 1 . 1 1 1 . 1 . . 1 1 1 1 1 1 . 1 1 1 . Scrap Searched 9 | . . . 2 . 1 . . . . . . . . . . . 3 3 . . Spaces Dug 72 | . . . . . . 3 13 . 2 1 15 . . 5 . 24 . 3 . 6 Terrain Destroyed 460 | . . 14 12 . 16 14 41 . 29 1 39 5 1 5 . 139 59 7 . 78 Melee 51 | . . . . . . 3 13 . 2 1 6 . . 5 . 12 . 3 . 6 Projectile 126 | . . . . . 1 1 1 . . . 10 5 1 . . 50 15 4 . 38 AOE 283 | . . 14 12 . 15 10 27 . 27 . 23 . . . . 77 44 . . 34 Terrain Rammed . | . . . . . . . . . . . . . . . . . . . . . Walls Destroyed . | . . . . . . . . . . . . . . . . . . . . . Machines Disabled . | . . . . . . . . . . . . . . . . . . . . . Actions | -11 -10 -9 -9 -9 -8 -8 -8 -7 -7 -6 -6 -6 -6 -6 -5 -4 -4 -4 -4 -3 --------- Run | Scr Mat Mat Min Exi Min Mat Sto Fac DSF Fac Ext Cet Arc Hub Fac Fac Upp Upp Zhi Pro Total 7999 | 25 156 95 261 393 519 441 562 172 197 64 802 276 146 147 19 2082 532 364 339 407 Wait 1452 | . 3 1 . 97 42 38 144 . 30 . 33 61 2 . . 937 29 5 3 27 Move 5516 | 18 141 71 249 292 440 282 321 164 122 57 597 153 124 137 17 950 451 333 284 313 Hop . | . . . . . . . . . . . . . . . . . . . . . Pick Up 115 | 1 3 7 4 2 1 25 8 2 3 1 16 7 1 . . 19 4 4 4 3 Fast Attach 72 | 1 1 2 . . 3 5 8 . 3 . 3 6 . 2 . 12 2 1 14 9 Attach 41 | . . . . . . 3 . 2 1 2 7 2 . . 2 7 1 . 5 9 Detach 15 | . 1 . . . 1 . 2 . 1 . 2 3 . . . . . . 3 2 Swap 145 | 1 1 1 1 . 5 21 18 3 9 3 16 6 8 . . 32 9 4 2 5 Drop 170 | . 3 1 5 2 4 28 21 1 8 . 19 14 4 2 . 24 5 6 19 4 Fire 297 | 4 3 11 2 . 14 36 17 . 11 . 39 24 7 . . 75 23 7 . 24 Melee 108 | . . 1 . . 9 3 23 . 3 1 15 . . 6 . 26 1 4 5 11 Ram . | . . . . . . . . . . . . . . . . . . . . . Kick . | . . . . . . . . . . . . . . . . . . . . . Crush 1 | . . . . . . . . . . . 1 . . . . . . . . . Escape Stasis 6 | . . . . . . . . . 6 . . . . . . . . . . . Rewire 61 | . . . . . . . . . . . 54 . . . . . 7 . . . Trap . | . . . . . . . . . . . . . . . . . . . . . Miscellaneous . | . . . . . . . . . . . . . . . . . . . . . Route ------- -11/Scrapyard -10/Materials -9/Materials -9/Mines (discovered 2 exits: *Mat / *Exi) -9/Exiles (discovered 2 exits: [*Min x2]) -8/Mines (discovered 2 exits: *Mat x2) -8/Materials -8/Storage -7/Factory (discovered 2 exits: Fac / DSF) -7/DSF -6/Factory -6/Extension (discovered 2 exits: [*Fac] / *Cet) -6/Cetus (discovered 2 exits: [*Fac] / *Arc) -6/Archives (discovered 3 exits: [*Fac] / *Hub x2) -6/Hub_04(d) -5/Factory -4/Factory (discovered 4 exits: [*Res] / *Upp x2 / Arm) -4/Upper Caves -4/Upper Caves (discovered 2 exits: [*Res] / *Zhi) -4/Zhirov -3/Proximity Caves History --------- Turn | Location | Event 15 | -11/Scrapyard | Discovered new exit (range 2) 39 | -11/Scrapyard | Entered Materials 205 | -10/Materials | Discovered new exit (range 3) 234 | -10/Materials | Entered another Materials area 234 | -9/Materials | Evolved 2 slots: Utility x1, Weapon x1 304 | -9/Materials | Build established: Mutant 349 | -9/Materials | Discovered new exit (range 10) 361 | -9/Materials | Identified exit to Mines 408 | -9/Materials | Entered Mines 464 | -9/Mines | Found a damaged Exp. Sensor Array with a note attached 506 | -9/Mines | Received a Mining Laser from a helpful Derelict 741 | -9/Mines | Discovered new exit (range 13) 864 | -9/Mines | Received a Rocket Launcher from a helpful Derelict 884 | -9/Mines | Deemed a non-threat by the Exiles lab entrance 885 | -9/Mines | Discovered new exit (range 5) 893 | -9/Mines | Entered Exiles 922 | -9/Exiles | Discovered new exit (range 15) 945 | -9/Exiles | Met 8R-AWN 973 | -9/Exiles | Met EX-HEX 1036 | -9/Exiles | Met EX-BIN 1152 | -9/Exiles | Aligned with FarCom system 1154 | -9/Exiles | Given EX-Vault access code 1215 | -9/Exiles | Opened EX-Vault 1227 | -9/Exiles | Found Longsword +1 1267 | -9/Exiles | Warned to stay clear of 0b10 Research branches 1293 | -9/Exiles | Exiles lab attacked by MAIN.C 1340 | -9/Exiles | Learned location of Zion (-7) 1433 | -9/Exiles | Discovered new exit (range 10) 1547 | -9/Exiles | Left Exiles lab with Longsword +1 1547 | -9/Exiles | Entered Mines 2163 | -8/Mines | Build established: Scavenger-Mutant 2188 | -8/Mines | Discovered new exit (range 9) 2478 | -8/Mines | Discovered new exit (range 11) 2507 | -8/Mines | Entered Materials 2507 | -8/Materials | Evolved 2 slots: Propulsion x1, Utility x1 2755 | -8/Materials | Lost 4 parts (1u3w) 2906 | -8/Materials | Identified exit to Storage 3268 | -8/Materials | Entered Storage 3311 | -8/Storage | Build established: Scavenger-Skirmisher 3448 | -8/Storage | Garrison activated, responded to threat 3862 | -8/Storage | Discovered new exit (range 5) 4100 | -8/Storage | Entered Factory 4100 | -7/Factory | Evolved 2 slots: Utility x2 4301 | -7/Factory | Discovered new exit (range 16) 4330 | -7/Factory | Identified exit to DSF 4346 | -7/Factory | Entered DSF 4391 | -7/DSF | Additional patrols routed to DSF 4605 | -7/DSF | Sterilization system engaged 4625 | -7/DSF | Ambient heat levels rising (+10) 4640 | -7/DSF | Ambient heat levels rising (+10) 4655 | -7/DSF | Ambient heat levels rising (+10) 4670 | -7/DSF | Ambient heat levels rising (+10) 4682 | -7/DSF | Discovered new exit (range 14) 4685 | -7/DSF | Ambient heat levels rising (+10) 4700 | -7/DSF | Ambient heat levels rising (+10) 4715 | -7/DSF | Ambient heat levels rising (+10) 4722 | -7/DSF | Entered Factory 4722 | -6/Factory | Evolved 2 slots: Propulsion x1, Weapon x1 4808 | -6/Factory | Discovered new exit (range 9) 4819 | -6/Factory | Entered Extension 4894 | -6/Extension | Disrupted transfer network 4955 | -6/Extension | Rescued A7 5134 | -6/Extension | Rescued a captive Derelict 5245 | -6/Extension | Rescued a captive Derelict 5380 | -6/Extension | Crushed by falling debris 5394 | -6/Extension | Crushed by falling debris 5394 | -6/Extension | System corruption reached 10% 5398 | -6/Extension | Crushed by falling debris 5429 | -6/Extension | Lost 7 parts (1p1n3u2w) 5434 | -6/Extension | Rescued a captive Derelict 5762 | -6/Extension | Energy Cycler disabled 5763 | -6/Extension | Rescued a captive Derelict 5763 | -6/Extension | Rescued a captive Derelict 5764 | -6/Extension | Rescued a captive Derelict 5765 | -6/Extension | Rescued a captive Derelict 5765 | -6/Extension | Rescued a captive Derelict 5766 | -6/Extension | Rescued a captive Derelict 5769 | -6/Extension | Rescued a captive Derelict 5869 | -6/Extension | First assault squad dispatched 6027 | -6/Extension | Discovered new exit (range 10) 6029 | -6/Extension | Discovered new exit (range 6) 6065 | -6/Extension | Entered Cetus 6065 | -6/Cetus | Accompanied by 6 allies (A7) 6070 | -6/Cetus | Acquired a Cetus Manufacturing Module code from A7 6086 | -6/Cetus | Spotted Cetus Guard 6086 | -6/Cetus | Spotted Cetus Guard 6089 | -6/Cetus | Spotted Cetus Guard 6090 | -6/Cetus | Spotted Cetus Guard 6095 | -6/Cetus | Allies destroyed Cetus Guard 6106 | -6/Cetus | Allies destroyed Cetus Guard 6109 | -6/Cetus | Destroyed A7 6118 | -6/Cetus | Destroyed Cetus Guard 6125 | -6/Cetus | Destroyed Cetus Guard 6137 | -6/Cetus | Extracted ID and sensor layout for unrecognized location from A7's data core 6161 | -6/Cetus | System corruption reached 30% 6205 | -6/Cetus | Started Cetus Manufacturing Module 6229 | -6/Cetus | Discovered new exit (range 16) 6230 | -6/Cetus | Manufactured an Enhanced Grunt 6255 | -6/Cetus | Manufactured an Enhanced Grunt 6260 | -6/Cetus | Spotted Cetus Guard 6263 | -6/Cetus | Spotted Cetus Guard 6265 | -6/Cetus | Spotted Cetus Guard 6271 | -6/Cetus | Spotted Cetus Guard 6274 | -6/Cetus | Allies destroyed Cetus Guard 6280 | -6/Cetus | Manufactured an Enhanced Grunt 6288 | -6/Cetus | Allies destroyed Cetus Guard 6297 | -6/Cetus | Allies destroyed Cetus Guard 6301 | -6/Cetus | Destroyed Cetus Guard 6305 | -6/Cetus | Manufactured an Enhanced Grunt 6312 | -6/Cetus | Cetus Manufacturing Module disabled 6329 | -6/Cetus | Discovered new exit (range 16) 6356 | -6/Cetus | Met Revision 17 6427 | -6/Cetus | Build established: Scavenger-Tank 6480 | -6/Cetus | Entered Archives 6480 | -6/Archives | Accompanied by 4 allies 6526 | -6/Archives | Unable to access archive contents 6532 | -6/Archives | Discovered new exit (range 14) 6555 | -6/Archives | Discovered new exit (range 15) 6579 | -6/Archives | Discovered new exit (range 14) 6593 | -6/Archives | Unable to access archive contents 6610 | -6/Archives | Unable to access archive contents 6715 | -6/Archives | Entered Hub_04(d) 6715 | -6/Hub_04(d) | Accompanied by 4 allies 6732 | -6/Hub_04(d) | Discovered new exit (range 18) 6896 | -6/Hub_04(d) | Network Hub disabled 6951 | -6/Hub_04(d) | Entered Factory 6951 | -5/Factory | Evolved 2 slots: Propulsion x2 6953 | -5/Factory | Discovered new exit (range 14) 6973 | -5/Factory | Build established: Scavenger-Assassin 6981 | -5/Factory | Entered another Factory area 6981 | -4/Factory | Evolved 2 slots: Utility x1, Weapon x1 7126 | -4/Factory | Repaired Centrium Medium Armor Plating 7235 | -4/Factory | Repaired Centrium Heavy Treads 7344 | -4/Factory | Repaired Centrium Heavy Treads 7445 | -4/Factory | Repaired Imp. KE Penetrator 7949 | -4/Factory | Identified exit to Upper Caves 7949 | -4/Factory | Identified exit to Armory 8109 | -4/Factory | Found Prototype Processor 8109 | -4/Factory | Identified Exp. Melee Analysis Suite 8463 | -4/Factory | Discovered new exit (range 17) 8577 | -4/Factory | Fabricated H-77 Assassin (x2) 8640 | -4/Factory | Fabricated H-77 Assassin (x2) 8964 | -4/Factory | Garrison activated, responded to threat 9231 | -4/Factory | First assault squad dispatched 9236 | -4/Factory | Build established: Scavenger-Skirmisher 9388 | -4/Factory | Repaired Centrium Heavy Treads 9670 | -4/Factory | Imp. Hacking Suite fried by hacking feedback 9763 | -4/Factory | Fabricated H-77 Assassin? 9841 | -4/Factory | Entered Upper Caves 10093 | -4/Upper Caves | Attracted the attention of an 0b10 checkpoint 10148 | -4/Upper Caves | Attracted the attention of an 0b10 outpost 10441 | -4/Upper Caves | Found Alien Artifact 10669 | -4/Upper Caves | Discovered new exit (range 17) 10712 | -4/Upper Caves | Entered another Upper Caves area 10779 | -4/Upper Caves | Discovered new exit (range 9) 10799 | -4/Upper Caves | Learned Research emergency access door positions 11269 | -4/Upper Caves | Discovered new exit (range 17) 11313 | -4/Upper Caves | Entered Zhirov 11313 | -4/Zhirov | Discovered new exit (range 3) 11345 | -4/Zhirov | Met Zhirov 11379 | -4/Zhirov | Build established: Scavenger-Assassin 11382 | -4/Zhirov | Learned location of Quarantine (-2) 11382 | -4/Zhirov | Learned location of Testing (-3) 11382 | -4/Zhirov | Learned location of Command (-1) 11403 | -4/Zhirov | Zhirov requested help retrieving the SGEMP Prototype 11429 | -4/Zhirov | Found Alien Artifact 11429 | -4/Zhirov | Identified Integrated Reactor 11429 | -4/Zhirov | Installed Integrated Reactor, increased core energy generation (+10) 11460 | -4/Zhirov | Found Alien Artifact 11607 | -4/Zhirov | Entered Proximity Caves 11812 | -3/Proximity Caves | Lost 4 parts (2n2w) 11816 | -3/Proximity Caves | System corruption reached 10% 11816 | -3/Proximity Caves | Identified Transdimensional Reconstructor 11816 | -3/Proximity Caves | Warped through subspace 11820 | -3/Proximity Caves | Identified Dimensional Node Initializer 11820 | -3/Proximity Caves | Initialized slip node 11991 | -3/Proximity Caves | Core integrity fell below 50% 12020 | -3/Proximity Caves | Lost 4 parts (2n1u1w) 12171 | -3/Proximity Caves | Core integrity fell below 20% 12180 | -3/Proximity Caves | Lost 5 parts (1u4w) 12264 | -3/Proximity Caves | Attracted the attention of an 0b10 outpost 12270 | -3/Proximity Caves | Released all parts (9) 12276 | -3/Proximity Caves | Destroyed by S-43 Plague with Heavy Machine Gun Last Messages --------------- 12221_ Acquired Sml. Battery. 12232_ System corrupted: Substantial component data lost. 12234_ Acquired 21 matter. 12246_ Acquired 29 matter. 12247_ Q&7BUW